bitfinex/quotes_SOLUSD_20241220
["timestamp","ask_amount","ask_price","bid_price","bid_amount"]
[1734736880837,20.0,194.04,193.95,10.24779553]
[1734736881045,10.24779553,194.05,193.95,10.24779553]
[1734736881222,10.24779553,194.05,193.97,10.24779553]
[1734736883526,19.68208691,194.1,194.04,1.6088]
[1734736883814,19.68208691,194.1,194.05,16.63239553]
[1734736884225,8.11533132,194.1,194.05,16.63239553]
[1734736884543,10.24779553,194.14,194.05,16.63239553]
[1734736884710,10.24779553,194.12,194.05,16.63239553]
[1734736884911,10.24779553,194.12,194.05,6.3846]
[1734736885141,10.24779553,194.1,194.05,6.3846]
[1734736885550,20.0,194.12,194.05,6.3846]
[1734736885720,3.62839918,194.15,194.05,16.63239553]
[1734736885721,2.04469918,194.15,194.05,16.63239553]
[1734736885919,10.24779553,194.14,194.05,16.63239553]
[1734736889418,10.24779553,194.14,194.07,10.24779553]
[1734736892254,10.24779553,194.14,194.06,10.24779553]
[1734736895056,10.24779553,194.12,194.05,6.3846]
[1734736895246,20.0,194.09,194.04,1.6088]
[1734736895571,34.02467953,194.08,194.0,17.34249553]
[1734736900385,20.0,194.09,194.02,10.24779553]
[1734736900681,20.0,194.07,194.02,10.24779553]
[1734736904684,23.776884,194.1,194.02,10.24779553]
[1734736916698,12.30100911,194.11,194.02,10.24779553]
[1734736916886,10.24779553,194.11,194.04,10.24779553]
[1734736917080,10.24779553,194.13,194.04,10.24779553]
[1734736917294,23.776884,194.12,194.04,10.24779553]
[1734736917502,12.8767,194.15,194.0,7.0947]
[1734736917716,10.24779553,194.13,194.04,10.24779553]
[1734736919274,10.24779553,194.14,194.06,16.44529553]
[1734736919997,10.24779553,194.14,194.06,6.1975]
[1734736920999,10.24779553,194.16,194.07,10.24779553]
[1734736925408,10.24779553,194.16,194.06,6.1975]
[1734736925409,0.6875215,194.18,194.09,10.24779553]
[1734736925885,0.6875215,194.18,194.12,6.1975]
[1734736927004,0.6875215,194.18,194.13,11.79059553]
[1734736927903,0.6875215,194.18,194.15,10.24779553]
[1734736928416,8.11533132,194.29,194.17,18.38299553]
[1734736928589,21.74081211,194.3,194.19,10.24779553]
[1734736928929,10.24779553,194.28,194.19,10.24779553]
[1734736929089,10.24779553,194.26,194.19,10.24779553]
[1734736929287,10.24779553,194.24,194.17,7.76377807]
[1734736929806,10.24779553,194.25,194.17,18.0115736]
[1734736929994,10.24779553,194.27,194.17,18.0115736]
[1734736932022,10.24779553,194.25,194.17,18.0115736]
[1734736933603,20.0,194.27,194.17,18.0115736]
[1734736933822,30.24779553,194.27,194.17,18.0115736]
[1734736935126,30.24779553,194.27,194.19,10.24779553]
[1734736938909,36.643984,194.3,194.19,10.24779553]
[1734736939111,23.776884,194.28,194.19,10.24779553]
[1734736941844,2.04084049,194.31,194.21,10.24779553]
[1734736942019,30.24779553,194.31,194.22,6.2745]
[1734736942229,10.24779553,194.29,194.22,6.2745]
[1734736945535,10.24779553,194.27,194.22,6.2745]
[1734736945709,23.776884,194.28,194.22,6.2745]
[1734736945915,10.24779553,194.27,194.22,6.2745]
[1734736947542,10.24779553,194.29,194.22,6.2745]
[1734736947740,23.776884,194.28,194.22,6.2745]
[1734736947943,2.0052461,194.32,194.22,6.2745]
[1734736948124,2.0052461,194.32,194.24,1.571]
[1734736948125,20.0,194.32,194.24,1.571]
[1734736948328,9.24779553,194.33,194.25,10.24779553]
[1734736948730,9.24779553,194.33,194.24,11.81879553]
[1734736948957,14.4131,194.35,194.24,1.571]
[1734736949136,10.24779553,194.32,194.24,1.571]
[1734736952258,10.24779553,194.3,194.24,1.571]
[1734736956051,23.776884,194.29,194.24,1.571]
[1734736956255,16.46962401,194.35,194.24,1.571]
[1734736956418,10.24779553,194.3,194.24,1.571]
[1734736957436,20.0,194.31,194.24,1.571]
[1734736957621,10.24779553,194.3,194.24,1.571]
[1734736959226,23.776884,194.3,194.24,11.81879553]
[1734736959715,23.776884,194.3,194.24,1.571]
[1734736962829,25.84673942,194.3,194.24,1.571]
[1734736968762,20.0,194.26,194.22,6.2745]
[1734736969058,10.24779553,194.25,194.19,1.5743]
[1734736969245,23.776884,194.24,194.19,1.5743]
[1734736973034,12.8676,194.29,194.19,1.5743]
[1734736973234,30.24779553,194.26,194.19,11.82209553]
[1734736973838,20.0,194.26,194.19,11.82209553]
[1734736975060,20.0,194.26,194.21,10.24779553]
[1734736975266,2.037364,194.31,194.21,10.24779553]
[1734736975475,10.24779553,194.31,194.21,10.24779553]
[1734736976252,10.24779553,194.29,194.21,10.24779553]
[1734736980276,12.28391454,194.29,194.21,10.24779553]
[1734736981584,12.8655,194.32,194.21,10.24779553]
[1734736981771,34.02467953,194.31,194.22,6.5256]
[1734736982689,1.5496,194.35,194.23,10.24779553]
[1734736982690,14.4129,194.35,194.23,10.24779553]
[1734736982860,10.24779553,194.33,194.24,1.6224]
[1734736983060,10.24779553,194.31,194.24,1.6224]
[1734736983688,10.24779553,194.29,194.24,1.6224]
[1734736984688,23.776884,194.28,194.24,1.6224]
[1734736985297,23.776884,194.28,194.22,6.5256]
[1734736985469,20.0,194.29,194.22,6.5256]
[1734736985783,30.24779553,194.29,194.22,6.5256]
[1734736986167,20.0,194.29,194.22,6.5256]
[1734736987893,14.96366495,194.32,194.23,10.24779553]
[1734736988092,23.776884,194.31,194.23,10.24779553]
[1734736988593,10.24779553,194.3,194.22,6.5256]
[1734736988793,23.776884,194.29,194.22,6.5256]
[1734736991386,23.776884,194.27,194.22,6.5256]
[1734737009503,19.57143612,194.34,194.33,24.711184]
[1734737009675,0.6875215,194.38,194.34,23.776884]
[1734737009877,0.6875215,194.38,194.33,24.711184]
[1734737010105,0.6875215,194.38,194.33,0.9343]
[1734737010292,0.6875215,194.38,194.27,0.9343]
[1734737010495,0.6875215,194.38,194.3,10.24779553]
[1734737011407,0.6875215,194.38,194.35,7.86321368]
[1734737011796,31.4411059,196.9,194.35,7.86321368]
[1734737011797,23.93979323,194.49,194.36,3.47019629]
[1734737012005,10.24779553,194.45,194.36,7.86219424]
[1734737012613,10.24779553,194.45,194.36,18.10998977]
[1734737012815,3.74848123,194.46,194.36,18.10998977]
[1734737013023,1.6537,194.46,194.38,10.24779553]
[1734737013194,0.05,194.48,194.4,10.24779553]
[1734737013398,8.2586084,194.46,194.4,18.10998977]
[1734737013792,8.2586084,194.46,194.42,10.24779553]
[1734737014225,8.2586084,194.46,194.39,7.86219424]
[1734737014397,8.2586084,194.46,194.42,7.86219424]
[1734737014713,8.2586084,194.46,194.41,7.86219424]
[1734737015219,8.2586084,194.46,194.4,10.24779553]
[1734737015717,23.776884,194.45,194.4,10.24779553]
[1734737016420,8.2586084,194.46,194.4,10.24779553]
[1734737016598,23.776884,194.45,194.4,10.24779553]
[1734737019232,23.776884,194.45,194.36,7.86219424]
[1734737019413,23.776884,194.45,194.4,10.24779553]
[1734737019924,8.2586084,194.46,194.4,10.24779553]
[1734737024807,8.2586084,194.46,194.44,10.24779553]
[1734737027130,0.05,194.48,194.44,10.24779553]
[1734737029239,0.05,194.48,194.44,0.24779553]
[1734737034044,0.05,194.48,194.45,10.24779553]
[1734737034926,0.05,194.48,194.46,10.24779553]
[1734737035544,0.05,194.48,194.4,40.99118212]
[1734737035741,0.05,194.48,194.46,10.24779553]
[1734737037343,0.05,194.48,194.43,10.24779553]
[1734737039934,10.37414177,194.52,194.43,10.24779553]
[1734737040732,0.12634624,194.52,194.43,10.24779553]
[1734737040947,10.37414177,194.52,194.43,10.24779553]
[1734737043957,0.12634624,194.52,194.51,10.24779553]
[1734737044135,0.12634624,194.52,194.44,6.2093]
[1734737044331,0.12634624,194.52,194.46,10.24779553]
[1734737044553,0.12634624,194.52,194.47,10.24779553]
[1734737044831,0.12634624,194.52,194.44,43.776884]
[1734737045028,0.12634624,194.52,194.45,23.776884]
[1734737045257,0.6564741,194.57,194.51,10.24779553]
[1734737045426,0.6564741,194.57,194.53,10.24779553]
[1734737048646,0.6564741,194.57,194.47,11.839696]
[1734737048848,0.6564741,194.57,194.5,10.24779553]
[1734737049860,0.6564741,194.57,194.52,10.24779553]
[1734737050367,0.6564741,194.57,194.5,10.24779553]
[1734737050561,0.6564741,194.57,194.52,10.24779553]
[1734737053873,0.6564741,194.57,194.54,10.24779553]
[1734737057142,0.6564741,194.57,194.55,10.24779553]
[1734737058864,0.6564741,194.57,194.5,20.0]
[1734737059173,0.6564741,194.57,194.56,10.24779553]
[1734737061262,0.6564741,194.57,194.54,10.24779553]
[1734737063954,0.6564741,194.57,194.45,7.86219424]
[1734737064354,0.6564741,194.57,194.49,10.24779553]
[1734737064755,10.24779553,194.56,194.44,0.1617]
[1734737064983,0.6564741,194.57,194.5,10.24779553]
[1734737067589,1.5836,194.56,194.42,23.776884]
[1734737067769,1.5836,194.56,194.48,10.24779553]
[1734737067956,11.83139553,194.56,194.48,10.24779553]
[1734737069857,6.5914,194.55,194.42,23.776884]
[1734737070194,6.5914,194.55,194.46,10.24779553]
[1734737070479,16.83919553,194.55,194.46,10.24779553]
[1734737071277,16.83919553,194.55,194.47,10.24779553]
[1734737072591,6.5914,194.55,194.49,10.24779553]
[1734737074182,1.5836,194.56,194.53,10.24779553]
[1734737074987,1.5836,194.56,194.45,0.77107874]
[1734737075171,1.5836,194.56,194.53,10.24779553]
[1734737075568,1.5836,194.56,194.46,23.776884]
[1734737075768,1.5836,194.56,194.52,10.24779553]
[1734737076072,1.5836,194.56,194.44,6.3576]
[1734737076282,1.5836,194.56,194.49,10.24779553]
[1734737076471,6.0661,194.52,194.41,7.86219424]
[1734737076666,10.24779553,194.51,194.43,10.24779553]
[1734737077513,10.24779553,194.51,194.4,7.86219424]
[1734737077672,10.24779553,194.51,194.44,10.24779553]
[1734737078580,10.24779553,194.51,194.39,20.0]
[1734737078782,6.0661,194.52,194.43,10.24779553]
[1734737079102,6.0661,194.52,194.43,9.63035248]
[1734737079267,1.6851,194.51,194.43,9.63035248]
[1734737079473,10.24779553,194.5,194.41,10.24779553]
[1734737079900,10.24779553,194.5,194.35,6.5754]
[1734737080083,1.6851,194.51,194.41,10.24779553]
[1734737080399,10.24779553,194.49,194.41,10.24779553]
[1734737080773,10.24779553,194.5,194.41,10.24779553]
[1734737081504,10.24779553,194.5,194.36,23.776884]
[1734737081796,10.24779553,194.5,194.42,10.24779553]
[1734737082875,10.24779553,194.48,194.4,10.24779553]
[1734737083072,10.24779553,194.5,194.42,10.24779553]
[1734737084605,10.24779553,194.48,194.39,10.24779553]
[1734737086604,10.24779553,194.48,194.35,20.0]
[1734737086791,1.6731,194.47,194.39,10.24779553]
[1734737087804,1.6731,194.47,194.44,10.24779553]
[1734737088331,1.6731,194.47,194.43,10.24779553]
[1734737091312,1.61123098,194.47,194.43,10.24779553]
[1734737093412,1.61123098,194.47,194.45,10.24779553]
[1734737095230,7.7055,194.52,194.45,10.24779553]
[1734737095402,7.7055,194.52,194.49,10.24779553]
[1734737099736,7.7055,194.52,194.47,10.24779553]
[1734737102430,7.7055,194.52,194.39,14.59499424]
[1734737102617,7.7055,194.52,194.45,10.24779553]
[1734737102929,7.7055,194.52,194.44,10.24779553]
[1734737102930,17.95329553,194.52,194.44,10.24779553]
[1734737103804,10.24779553,194.5,194.41,10.24779553]
[1734737104004,1.7133,194.47,194.41,10.24779553]
[1734737104227,1.7133,194.47,194.39,10.24779553]
[1734737104401,10.24779553,194.46,194.39,10.24779553]
[1734737104730,10.24779553,194.44,194.31,15.72642736]
[1734737105103,10.24779553,194.44,194.29,31.73425473]
[1734737105104,10.24779553,194.4,194.32,10.24779553]
[1734737105321,1.7133,194.36,194.26,15.72642736]
[1734737105526,11.96109553,194.36,194.29,10.24779553]
[1734737106045,11.96109553,194.36,194.27,10.24779553]
[1734737106046,10.24779553,194.34,194.27,10.24779553]
[1734737107135,11.96109553,194.36,194.27,10.24779553]
[1734737107335,10.24779553,194.34,194.15,7.23902461]
[1734737107543,10.24779553,194.32,194.25,10.24779553]
[1734737108642,1.7133,194.36,194.25,10.24779553]
[1734737108841,10.24779553,194.33,194.25,10.24779553]
[1734737109024,1.7133,194.36,194.25,10.24779553]
[1734737109223,10.24779553,194.34,194.25,10.24779553]
[1734737110351,14.5761,194.36,194.25,10.24779553]
[1734737110510,1.7133,194.36,194.27,10.24779553]
[1734737110710,11.96109553,194.36,194.27,10.24779553]
[1734737111341,1.7133,194.36,194.29,10.24779553]
[1734737112446,1.7133,194.36,194.24,20.0]
[1734737112647,1.7133,194.36,194.28,15.90790884]
[1734737115851,1.7133,194.36,194.3,15.90790884]
[1734737119868,1.7133,194.36,194.31,23.776884]
[1734737120156,1.7133,194.36,194.34,15.90790884]
[1734737120467,7.7071,194.42,194.34,15.90790884]
[1734737127285,7.7071,194.42,194.36,15.90790884]
[1734737129384,15.90790884,194.41,194.33,15.90790884]
[1734737129565,15.90790884,194.39,194.31,15.90790884]
[1734737130387,15.90790884,194.37,194.29,15.90790884]
[1734737130989,1.713,194.36,194.29,15.90790884]
[1734737131965,15.90790884,194.37,194.36,8.287]
[1734737134685,10.18093594,194.37,194.36,8.287]
[1734737137392,33.95781994,194.37,194.36,0.00545564]
[1734737137582,23.776884,194.36,194.24,10.18093594]
[1734737137769,10.18093594,194.33,194.24,10.18093594]
[1734737138595,10.18093594,194.31,194.23,10.18093594]
[1734737140511,10.18093594,194.33,194.23,10.18093594]
[1734737140721,10.18093594,194.33,194.25,10.18093594]
[1734737140906,12.26770706,194.33,194.18,24.099684]
[1734737141083,12.26770706,194.33,194.24,10.18093594]
[1734737143589,1.67,194.32,194.24,10.18093594]
[1734737145518,10.18093594,194.31,194.18,24.099684]
[1734737145710,10.18093594,194.29,194.14,0.77221924]
[1734737145885,10.18093594,194.29,194.21,10.18093594]
[1734737151001,10.18093594,194.29,194.15,20.0]
[1734737151335,10.18093594,194.29,194.2,10.18093594]
[1734737151500,10.18093594,194.27,194.18,10.18093594]
[1734737154124,10.18093594,194.23,194.1,1.6774]
[1734737154324,10.18093594,194.23,194.15,10.18093594]
[1734737155238,1.6849,194.22,194.05,1.6086]
[1734737155413,10.18093594,194.21,194.05,1.6086]
[1734737155725,10.18093594,194.19,194.11,10.18093594]
[1734737156022,23.776884,194.18,194.05,1.6086]
[1734737156226,23.776884,194.18,194.1,10.18093594]
[1734737156929,10.18093594,194.17,194.05,1.6086]
[1734737157298,10.18093594,194.17,194.09,10.18093594]
[1734737158109,6.545,194.2,194.14,10.18093594]
[1734737160017,6.545,194.2,194.16,10.18093594]
[1734737160330,1.6849,194.22,194.18,10.18093594]
[1734737160938,6.545,194.25,194.18,10.18093594]
[1734737161931,10.18093594,194.23,194.16,10.18093594]
[1734737162130,10.18093594,194.23,194.14,10.18093594]
[1734737163334,10.18093594,194.21,194.06,0.77254639]
[1734737163538,10.18093594,194.21,194.12,10.18093594]
[1734737165452,10.18093594,194.21,194.14,10.18093594]
[1734737166220,10.18093594,194.21,194.1,20.0]
[1734737166420,10.18093594,194.21,194.12,10.18093594]
[1734737166618,10.18093594,194.17,194.06,23.776884]
[1734737166823,6.545,194.16,194.01,2.381352]
[1734737167017,6.545,194.16,194.08,10.18093594]
[1734737167341,10.18093594,194.15,194.06,10.18093594]
[1734737167547,1.6849,194.12,194.0,1.0]
[1734737167713,10.18093594,194.11,194.03,10.18093594]
[1734737168620,15.94681647,194.11,194.03,15.94681647]
[1734737169328,6.545,194.08,194.0,1.0]
[1734737169651,15.94681647,194.07,194.0,16.94681647]
[1734737170029,6.545,194.08,194.02,15.94681647]
[1734737171026,17.63171647,194.12,194.04,15.94681647]
[1734737171329,17.63171647,194.12,194.06,15.94681647]
[1734737171330,1.6849,194.12,194.06,15.94681647]
[1734737172230,17.63171647,194.12,194.04,15.94681647]
[1734737172443,15.94681647,194.1,194.02,15.94681647]
[1734737175133,15.94681647,194.08,194.0,16.94681647]
[1734737175326,15.94681647,194.06,194.0,1.0]
[1734737176329,17.55101647,194.02,194.0,1.0]
[1734737177751,23.776884,194.01,193.89,0.6564741]
[1734737177961,15.94681647,193.97,193.89,16.60329057]
[1734737180153,15.94681647,193.97,193.9,15.94681647]
[1734737180451,15.94681647,194.0,193.92,15.94681647]
[1734737180958,1.6042,194.02,193.92,15.94681647]
[1734737181168,17.55101647,194.02,193.94,15.94681647]
[1734737186076,1.6042,194.02,193.96,15.94681647]
[1734737186236,1.6042,194.02,193.98,15.94681647]
[1734737186867,15.94681647,194.06,193.98,15.94681647]
[1734737187962,15.94681647,194.02,193.9,23.776884]
[1734737188137,15.94681647,194.02,193.94,15.94681647]
[1734737197951,7.9242,194.04,193.89,0.6564741]
[1734737197952,15.94681647,194.0,193.92,15.94681647]
[1734737199659,15.94681647,193.97,193.9,15.94681647]
[1734737200340,15.94681647,193.97,193.89,0.6564741]
[1734737200561,15.94681647,193.95,193.89,0.6564741]
[1734737202375,15.94681647,193.97,193.89,0.6564741]
[1734737205157,15.94681647,193.95,193.89,0.6564741]
[1734737208185,23.776884,193.99,193.89,0.6564741]
[1734737208353,15.94681647,193.96,193.89,0.6564741]
[1734737210277,15.94681647,193.98,193.9,15.94681647]
[1734737213272,15.94681647,193.98,193.89,0.6564741]
[1734737213578,15.94681647,193.98,193.89,16.60329057]
[1734737213754,15.94681647,193.96,193.89,16.60329057]
[1734737214565,15.94681647,193.96,193.89,0.6564741]
[1734737214770,10.22134004,193.96,193.89,0.6564741]
[1734737216281,12.8863,194.01,193.89,0.6564741]
[1734737216482,10.22134004,193.98,193.9,10.22134004]
[1734737219776,10.22134004,193.96,193.89,0.6564741]
[1734737220287,10.22134004,193.96,193.89,10.87781414]
[1734737222183,10.22134004,193.97,193.89,10.87781414]
[1734737225388,12.82426516,194.01,193.89,10.87781414]
[1734737225690,10.22134004,193.98,193.89,10.87781414]
[1734737230292,20.8081,194.04,193.93,10.22134004]
[1734737230493,10.22134004,194.02,193.93,10.22134004]
[1734737233502,10.22134004,194.02,193.94,1.7391]
[1734737233996,10.22134004,194.0,193.94,1.7391]
[1734737237194,1.7743,194.08,193.97,10.22134004]
[1734737237496,10.22134004,194.05,193.97,10.22134004]
[1734737238684,10.22134004,194.06,193.97,10.22134004]
[1734737239008,10.22134004,194.06,193.94,2.51228126]
[1734737239187,10.22134004,194.06,193.98,10.22134004]
[1734737239372,2.01420581,194.1,194.02,10.22134004]
[1734737239572,10.22134004,194.09,194.02,10.22134004]
[1734737240074,10.22134004,194.09,194.0,10.22134004]
[1734737240485,2.02969994,194.13,194.02,10.22134004]
[1734737240680,10.22134004,194.1,194.02,10.22134004]
[1734737242500,10.22134004,194.12,194.04,10.22134004]
[1734737243279,10.22134004,194.08,194.01,7.8415]
[1734737243506,10.22134004,194.08,194.01,18.06284004]
[1734737243712,10.22134004,194.06,193.97,7.87930376]
[1734737243879,10.22134004,194.06,193.97,18.1006438]
[1734737244080,10.22134004,194.06,193.99,10.22134004]
[1734737244793,10.22134004,194.08,193.99,10.22134004]
[1734737244991,23.776884,194.13,194.01,10.22134004]
[1734737245218,10.22134004,194.09,194.01,10.22134004]
[1734737250422,10.22134004,194.11,194.03,10.22134004]
[1734737250718,23.776884,194.13,194.03,10.22134004]
[1734737250895,10.22134004,194.11,194.03,10.22134004]
[1734737251689,12.8777,194.14,194.03,10.22134004]
[1734737251891,10.22134004,194.11,194.03,10.22134004]
[1734737252418,10.22134004,194.13,194.05,10.22134004]
[1734737261724,10.22134004,194.11,194.04,8.2311]
[1734737263393,2.05463129,194.16,194.04,8.2311]
[1734737263719,10.22134004,194.12,194.04,8.2311]
[1734737273531,10.22134004,194.13,194.05,10.22134004]
[1734737275428,10.22134004,194.13,194.04,8.2311]
[1734737275634,10.22134004,194.13,194.05,10.22134004]
[1734737280222,10.22134004,194.12,194.05,10.22134004]
[1734737281548,23.776884,194.16,194.06,10.22134004]
[1734737281718,10.22134004,194.15,194.08,10.22134004]
[1734737283255,10.22134004,194.15,194.07,10.22134004]
[1734737283754,10.22134004,194.15,194.08,10.22134004]
[1734737284944,10.22134004,194.16,194.08,10.22134004]
[1734737290256,2.04877788,194.18,194.08,10.22134004]
[1734737290462,10.22134004,194.17,194.08,10.22134004]
[1734737297276,10.22134004,194.2,194.1,10.22134004]
[1734737298678,34.63634983,194.22,194.1,10.22134004]
[1734737298851,10.22134004,194.19,194.1,10.22134004]
[1734737300881,10.22134004,194.17,194.05,7.87930376]
[1734737301047,10.22134004,194.17,194.08,10.22134004]
[1734737301250,10.22134004,194.17,194.05,7.87930376]
[1734737301447,10.22134004,194.17,194.08,10.22134004]
[1734737301850,10.22134004,194.17,194.04,16.88316253]
[1734737302050,10.22134004,194.17,194.08,10.22134004]
[1734737302360,10.22134004,194.15,194.06,10.22134004]
[1734737302880,10.22134004,194.13,194.04,8.2311]
[1734737303178,10.22134004,194.09,194.04,1.7111]
[1734737304078,10.22134004,194.09,194.02,10.22134004]
[1734737304389,10.22134004,194.07,193.99,17.90854004]
[1734737305255,10.22134004,194.07,193.99,1.587]
[1734737305458,10.22134004,194.05,193.99,1.587]
[1734737305677,10.22134004,194.05,193.97,10.22134004]
[1734737306279,23.776884,194.04,193.97,10.22134004]
[1734737306591,23.776884,194.02,193.94,10.22134004]
[1734737306771,23.776884,193.98,193.9,1.587]
[1734737307092,33.99822404,193.98,193.9,11.80834004]
[1734737307295,33.99822404,193.98,193.9,1.587]
[1734737307592,33.99822404,193.98,193.89,10.87781414]
[1734737308682,10.22134004,193.96,193.89,10.87781414]
[1734737308885,23.776884,193.95,193.89,0.6564741]
[1734737311708,6.4886,194.0,193.91,10.22134004]
[1734737312001,10.22134004,194.0,193.93,10.22134004]
[1734737312206,10.22134004,194.0,193.92,10.22134004]
[1734737315810,23.776884,193.99,193.92,10.22134004]
[1734737316622,6.0528,194.04,193.92,10.22134004]
[1734737316791,10.22134004,194.01,193.92,10.22134004]
[1734737318611,10.22134004,194.01,193.89,0.6564741]
[1734737318808,10.22134004,194.01,193.92,10.22134004]
[1734737324228,10.22134004,194.01,193.89,0.6564741]
[1734737324447,10.22134004,194.01,193.93,10.22134004]
[1734737324621,10.22134004,193.99,193.91,10.22134004]
[1734737332733,1.6518,193.98,193.89,0.6564741]
[1734737332928,1.6518,193.98,193.9,10.22134004]
[1734737336640,1.6518,193.98,193.89,0.6564741]
[1734737336938,1.6518,193.98,193.9,10.22134004]
[1734737337439,11.87314004,193.98,193.9,10.22134004]
[1734737338136,1.6518,193.98,193.9,10.22134004]
[1734737338443,1.6518,193.98,193.92,10.22134004]
[1734737339740,11.87314004,193.98,193.9,10.22134004]
[1734737340423,1.6518,193.98,193.92,10.22134004]
[1734737340631,10.22134004,194.0,193.92,10.22134004]
[1734737340830,1.7023,194.03,193.94,10.22134004]
[1734737341025,10.22134004,194.02,193.94,10.22134004]
[1734737346751,1.7023,194.03,193.94,10.22134004]
[1734737346943,10.22134004,194.02,193.94,10.22134004]
[1734737351060,10.22134004,194.02,193.89,1.42980893]
[1734737351257,10.22134004,193.94,193.89,0.6564741]
[1734737351448,10.22134004,193.93,193.89,0.6564741]
[1734737352263,10.22134004,193.94,193.89,0.6564741]
[1734737352449,1.6867,193.96,193.89,10.87781414]
[1734737352636,10.22134004,193.97,193.9,10.22134004]
[1734737353847,10.22134004,193.98,193.9,10.22134004]
[1734737356058,10.22134004,193.99,193.91,10.22134004]
[1734737356254,10.22134004,193.99,193.89,0.6564741]
[1734737356255,10.22134004,193.99,193.92,10.22134004]
[1734737356757,6.1987,194.0,193.93,10.22134004]
[1734737357357,10.22134004,194.01,193.93,10.22134004]
[1734737357556,10.22134004,194.01,193.94,10.22134004]
[1734737358864,10.22134004,194.01,193.91,20.0]
[1734737359070,10.22134004,194.0,193.93,10.22134004]
[1734737359366,10.22134004,194.01,193.93,10.22134004]
[1734737361369,10.22134004,194.01,193.91,20.0]
[1734737361667,10.22134004,194.01,193.93,10.22134004]
[1734737363467,10.22134004,194.02,193.94,10.22134004]
[1734737363669,23.776884,194.04,193.95,10.22134004]
[1734737363850,10.22134004,194.02,193.95,10.22134004]
[1734737364273,1.5857,194.05,193.91,20.77327486]
[1734737364566,3.67867354,194.1,194.03,10.22134004]
[1734737364769,11.80704004,194.1,194.03,10.22134004]
[1734737365654,11.80704004,194.1,194.02,10.22134004]
[1734737365871,23.776884,194.09,194.02,10.22134004]
[1734737366053,23.776884,194.09,193.96,21.5796]
[1734737366255,23.776884,194.09,194.02,10.22134004]
[1734737367367,33.99822404,194.09,194.02,10.22134004]
[1734737368169,33.99822404,194.09,194.01,10.22134004]
[1734737370273,10.22134004,194.07,193.99,10.22134004]
[1734737371456,33.99822404,194.09,194.01,10.22134004]
[1734737374069,23.776884,194.09,194.01,10.22134004]
[1734737375275,33.99822404,194.09,194.01,10.22134004]
[1734737383480,10.22134004,194.08,194.0,10.22134004]
[1734737383660,10.22134004,194.06,193.95,20.0]
[1734737383982,10.22134004,194.05,193.97,10.22134004]
[1734737384284,10.22134004,194.06,193.98,10.22134004]
[1734737384464,10.22134004,194.06,193.95,20.0]
[1734737384664,10.22134004,194.06,193.98,10.22134004]
[1734737386182,10.22134004,194.06,193.99,10.22134004]
[1734737386485,10.22134004,194.07,193.99,10.22134004]
[1734737386686,23.776884,194.06,193.99,10.22134004]
[1734737389064,23.776884,194.06,194.0,10.22134004]
[1734737389776,23.776884,194.06,193.99,10.22134004]
[1734737390093,33.99822404,194.06,193.99,10.22134004]
[1734737390394,23.776884,194.06,194.0,10.22134004]
[1734737392078,23.776884,194.06,193.99,10.22134004]
[1734737402800,10.22134004,194.0,193.9,7.87930376]
[1734737403102,10.22134004,193.99,193.92,10.22134004]
[1734737403486,10.22134004,194.0,193.93,10.22134004]
[1734737404493,10.22134004,193.99,193.93,10.22134004]
[1734737406111,10.22134004,194.0,193.93,10.22134004]
[1734737407306,10.22134004,193.99,193.92,10.22134004]
[1734737408217,10.22134004,193.99,193.89,20.6564741]
[1734737408416,10.22134004,193.99,193.92,10.22134004]
[1734737409213,7.6664,194.03,193.93,10.22134004]
[1734737409214,23.776884,194.02,193.93,10.22134004]
[1734737409525,23.776884,193.99,193.93,10.22134004]
[1734737410411,10.22134004,193.97,193.89,0.6564741]
[1734737410594,10.22134004,193.96,193.9,10.22134004]
[1734737410802,10.22134004,193.96,193.89,0.6564741]
[1734737411004,10.22134004,193.96,193.9,10.22134004]
[1734737411210,10.22134004,193.96,193.89,10.87781414]
[1734737412535,10.22134004,193.96,193.9,10.22134004]
[1734737413332,23.776884,193.96,193.91,10.22134004]
[1734737416526,1.5317,193.97,193.92,10.22134004]
[1734737416830,1.5317,193.97,193.94,10.22134004]
[1734737417425,6.1573,194.03,193.96,10.22134004]
[1734737417628,16.37864004,194.03,193.93,20.0]
[1734737417797,16.37864004,194.03,193.95,10.22134004]
[1734737418003,10.22134004,194.02,193.95,10.22134004]
[1734737418811,16.37864004,194.03,193.95,10.22134004]
[1734737419219,23.776884,194.02,193.95,10.22134004]
[1734737421038,23.776884,194.02,193.9,41.65867466]
[1734737421200,33.99822404,194.02,193.95,10.22134004]
[1734737421400,6.1573,194.03,193.96,10.22134004]
[1734737421599,6.1573,194.03,193.99,10.22134004]
[1734737421824,1.6489,194.04,194.0,10.22134004]
[1734737422027,18.44164004,194.08,194.01,10.22134004]